[Event "Silves Open 2025"]
[Site "Fissul"]
[Date "2025.03.03"]
[Round "2.3"]
[White "Martins, Bruno Andre Leite"]
[Black "Esteves, Goncalo Maria Franco"]
[Result "1-0"]
[Annotator "TA"]
[ECO "C10"]
[WhiteElo "2360"]
[BlackElo "1962"]
[PlyCount "30"]
[EventDate "2025.03.03"]
[EventType "swiss"]
[EventCountry "POR"]
[SourceTitle "playchess.com"]
[Source "ChessBase"]
[SourceQuality "1"]
[TimeControl "5400+30"]

{[%evp 17,30,44,35,0,47,32,46,54,58,61,79,54,286,297,879]} 1. e4 {[%emt 0:03:05]} e6 {[%emt 0:00:07]} 2. d4 {[%emt 0:04:48]} d5 {[%emt 0:00:13]} 3. Nd2 {[%emt 0:00:08]} dxe4 {[%emt 0:00:59]} 4. Nxe4 {[%emt 0:00:10]} Bd7 {[%emt 0:00:57]} 5. Nf3 {[%emt 0:00:14]} Bc6 {[%emt 0:00:07]} 6. Bd3 {[%emt 0:00:08]} Nd7 {[%emt 0:02:08]} 7. O-O {[%emt 0:00:13]} Ngf6 {[%emt 0:00:19]} 8. Ng3 {[%emt 0:00:12]} Be7 {[%emt 0:02:15]} 9. Re1 {[%emt 0:01:09]} O-O {[%emt 0:01:44]} 10. Bf4 {[%emt 0:13:09] C10: French with 3 Nc3: Unusual Black 3rd moves and 3...dxe4.} Nd5 {[%emt 0:11:14]} (10... Bxf3 $11 11. Qxf3 c5) 11. Bd2 $14 {[%emt 0:00:50]} b5 $146 {[%emt 0:06:49]} (11... Nb4 12. Be2 Bxf3 13. Bxf3 c6 14. c3 Nd5 15. Qc2 Qc7 16. Rad1 Rfe8 17. c4 Nf4 {1-0 Svane,F (2493)-Janaszak,D (2333) Titled Tuesday intern op 25th Jan blitz 2022 (3)}) 12. c3 {[%emt 0:06:31]} a6 {[%emt 0:05:02]} 13. Qe2 {[%emt 0:06:08]} N5b6 {[%emt 0:11:48]} 14. Nh5 {[%emt 0:09:24] White is more active.} Nf6 $2 {[%emt 0:23:46] [#]} (14... Bxf3 $14 15. Qxf3 g6) 15. Ng5 $1 $18 {[%emt 0:12:45] Nxf6+ would now be deadly.} Nxh5 $2 {[%emt 0:26:44] Black did not feel at home in the position after the opening.   Weighted Error Value: White=0.07 (flawless) /Black=0.69  Loses game:     	---       	Black=1      Mistake:       	---       	Black=2      OK:         	---       	Black=1      Best:        	White=1     	---        Strong:       	White=1     	---} (15... g6) 1-0

[Event "Silves Open 2025"]
[Site "Fissul"]
[Date "2025.03.03"]
[Round "2.5"]
[White "Moldovan, Lucas Gabriel"]
[Black "Alshameary Puente, Ismael"]
[Result "0-1"]
[Annotator "TA"]
[ECO "B24"]
[WhiteElo "1992"]
[BlackElo "2343"]
[PlyCount "52"]
[EventDate "2025.03.03"]
[EventType "swiss"]
[EventCountry "POR"]
[SourceTitle "playchess.com"]
[Source "ChessBase"]
[SourceQuality "1"]
[TimeControl "5400+30"]

{[%evp 14,52,-21,-33,-12,-19,-2,-23,7,-14,-11,-12,-2,-7,-3,-35,-27,-43,-31,-21,-28,-111,-51,-81,-74,-113,-115,-366,-376,-351,-289,-318,-304,-363,-378,-386,-384,-675,-675,-662,-653]} 1. e4 {[%emt 0:00:19]} c5 {[%emt 0:00:03]} 2. Nc3 {[%emt 0:00:05]} e6 {[%emt 0:00:25]} 3. g3 {[%emt 0:03:04]} d5 {[%emt 0:00:15]} 4. Bg2 {[%emt 0:02:08]} Nf6 {[%emt 0:00:18]} 5. d3 {[%emt 0:01:37]} Nc6 {[%emt 0:04:04]} 6. Nh3 {[%emt 0:07:17]} Be7 {[%emt 0:05:29]} 7. O-O {[%emt 0:16:46]} O-O {[%emt 0:11:43]} 8. f4 dxe4 {[%emt 0:00:30] B24: Closed Sicilian: 3 g3 sidelines.} 9. Nxe4 Qc7 {[%emt 0:00:30]} 10. Nhg5 Nd5 $146 {[%emt 0:00:30] Black has an edge.} (10... Rd8 11. Nxf6+ Bxf6 12. Qh5 h6 13. Ne4 Bd4+ 14. Kh1 f5 15. c3 fxe4 16. cxd4 exd3 17. Qxc5 {0-1 Neuman Zakoucka,A-Weber,M (2225) Berlin Spandau op 2018 (6)}) 11. Nc3 Nxc3 {[%emt 0:00:30]} 12. bxc3 {A sharp opening} h6 {[%emt 0:00:30]} 13. Ne4 f5 {[%emt 0:00:30]} 14. Nf2 Bf6 {[%emt 0:00:30]} 15. Bd2 Bd7 {[%emt 0:00:30]} 16. Rb1 Rad8 {[%emt 0:00:30]} 17. Be3 (17. g4 $11) 17... b6 {[%emt 0:00:30]} (17... Bxc3 $17 18. Bxc5 Rf7) 18. c4 Bc8 {[%emt 0:00:30]} 19. Qh5 Nb4 {[%emt 0:00:30]} 20. Nh3 $2 {[%mdl 8192] [#] White does not recover from this.} (20. Qe2 $17) 20... Nxc2 $19 {[%emt 0:00:30]} (20... Nxa2 $2 21. g4 $19) 21. Bf2 Nb4 {[%emt 0:00:30]} 22. d4 Bxd4 {[%emt 0:00:30]} ({But not} 22... Nxa2 23. dxc5 bxc5 24. Rbe1) 23. Bxd4 Rxd4 {[%emt 0:00:30]} 24. a3 Nc6 {[%emt 0:00:30]} 25. Ng5 $2 {[#]} (25. Rbc1) 25... hxg5 {[%emt 0:00:30]} 26. fxg5 Ne7 {[%emt 0:00:30] Weighted Error Value: White=0.56/Black=0.14 (very precise)   Loses game:     	White=1     	---        Mistake:       	White=2     	Black=1      Inaccurate:     	White=3     	Black=1      OK:         	White=3     	Black=5      Best:        	---       	Black=2} (26... Rxc4 27. g6 Re8 28. Rbe1 $11) 0-1

[Event "Silves Open 2025"]
[Site "Fissul"]
[Date "2025.03.03"]
[Round "2.6"]
[White "Lux, Hugo de Melo"]
[Black "Finkler, Kai Andreas"]
[Result "1-0"]
[Annotator "TA"]
[ECO "B03"]
[WhiteElo "2329"]
[BlackElo "1990"]
[PlyCount "77"]
[EventDate "2025.03.03"]
[EventType "swiss"]
[EventCountry "POR"]
[SourceTitle "playchess.com"]
[Source "ChessBase"]
[SourceQuality "1"]
[TimeControl "5400+30"]

{[%evp 16,77,32,32,23,28,47,12,-8,0,15,-17,0,-35,17,16,25,23,56,34,35,35,24,39,37,31,45,38,100,54,64,60,56,58,79,71,74,77,77,75,70,92,102,90,175,179,245,209,252,249,259,0,0,0,0,0,6,5,29985,29986,29985,29986,29997,29998]} 1. e4 {[%emt 0:02:05][%cal Be2e4,Be4e5][%mdl 32]} Nf6 {[%emt 0:00:06]} 2. e5 {[%emt 0:00:26]} Nd5 {[%emt 0:00:05]} 3. d4 {[%emt 0:00:04]} d6 {[%emt 0:00:17]} 4. c4 {[%emt 0:00:08]} Nb6 {[%emt 0:00:11]} 5. exd6 {[%emt 0:00:13]} exd6 {[%emt 0:00:10]} 6. Nc3 {[%emt 0:00:07]} Be7 {[%emt 0:00:12]} 7. Nf3 {[%emt 0:00:25]} O-O {[%emt 0:00:40]} 8. h3 {[%emt 0:00:17]} Bf5 {[%emt 0:01:40] 8...Nc6 is the hot move.} 9. Be2 {[%emt 0:00:22]} Re8 {[%emt 0:01:16] B03: Alekhine's Defence: Four Pawns Attack.} 10. O-O {[%emt 0:00:14]} Nc6 {[%emt 0:00:56]} 11. g4 $146 {[%emt 0:05:40]} (11. Be3 Bf6 12. Rc1 d5 13. b3 Qd7 14. c5 Nc8 15. Bf4 N8e7 16. b4 a6 17. b5 axb5 18. Bxb5 {0-1 Veiga,J (2378)-Hnydiuk,A (2376) Titled Tuesday intern op 23rd Aug Late blitz 2022 (7)}) 11... Bg6 {[%emt 0:00:41] The position is equal.} 12. d5 {[%emt 0:01:13]} Nb8 {[%emt 0:03:27]} 13. Nd4 {[%emt 0:01:49]} Bf6 {[%emt 0:04:50]} 14. Be3 {[%emt 0:07:05]} N8d7 {[%emt 0:01:05]} ({Black should try} 14... c5 $15 15. dxc6 Nxc6) 15. Qd2 $11 {[%emt 0:02:31]} Nc5 {[%emt 0:03:20]} 16. Rfe1 Ne4 {[%emt 0:00:30]} 17. Nxe4 Bxe4 {[%emt 0:00:30]} 18. g5 Be5 {[%emt 0:00:30]} 19. f4 Bxd4 {[%emt 0:00:30]} 20. Bxd4 Qd7 {[%emt 0:00:30]} 21. Kh2 Bf5 {[%emt 0:00:30]} (21... c6 $14) 22. Bf1 (22. b3 $16) 22... Rxe1 {[%emt 0:00:30]} 23. Rxe1 Re8 {[%emt 0:00:30] Prevents Qe3.} 24. b3 Nc8 {[%emt 0:00:30]} 25. Bb2 {[%cal Od2d4] White has space advantage and is better White is more active.} Rxe1 {[%emt 0:00:30]} 26. Qxe1 {Qc3 is the strong threat.} Qe7 {[%emt 0:00:30]} 27. Qc3 {[%csl Gb2][%cal Rc3g7] [#]} Qf8 {[%emt 0:00:30]} 28. h4 {[%cal Bh3h4,Bh4h5,Bh5h6][%mdl 32]} Ne7 {[%emt 0:00:30]} 29. h5 (29. Be2 {simplifies} b6 30. h5 f6 31. gxf6 Qxf6 32. Qxf6 gxf6 33. Bxf6 Kf7 34. Bc3) 29... Bb1 {[%emt 0:00:30]} (29... f6 $16) 30. h6 $1 $18 Nf5 {[%emt 0:00:30]} (30... Ng6 {keeps fighting.}) 31. Qe1 Bxa2 {[%emt 0:00:30]} 32. Bd3 Qe7 {[%emt 0:00:30]} 33. Qc3 (33. Qd2 $18 g6 34. Qc3) 33... Qe3 $1 $11 {[%emt 0:00:30] ( -> ...Qf2+)} 34. Bxf5 $40 {[%csl Gb2,Gh6][%cal Rc3g7][%mdl 128] White has some attack. A strong pair of Bishops.} Qxf4+ {[%emt 0:00:30]} 35. Qg3 (35. Kh1 $5 Qf1+ $8 36. Kh2 Qf2+ 37. Kh1 Qf1+ $11) 35... Qxf5 {[%emt 0:00:30]} 36. Qe3 {[%cal Re3e8]} (36. Bxg7 Bb1 37. Qe3 Qe4 38. Qxe4 Bxe4 $16) 36... Qc2+ $2 {[%emt 0:00:30][%mdl 8192] [#]} (36... Qd7 $11) 37. Kg3 {[%cal Re3e8] White mates.} Qxb3 {[%emt 0:00:30]} 38. Bc3 {[%cal Re3e8]} Qa4 {[%emt 0:00:30]} 39. Qe7 {Weighted Error Value: White=0.19 (very precise) /Black=0.28 (precise)   Loses game:     	---       	Black=1      Missed win:     	White=1     	---        Mistake:       	White=1     	Black=4      Inaccurate:     	White=3     	Black=1      OK:         	White=9     	Black=9      Best:        	White=2     	Black=2      Strong:       	White=1     	Black=1} 1-0

[Event "Silves Open 2025"]
[Site "Fissul"]
[Date "2025.03.03"]
[Round "2.8"]
[White "Goncalves, Diogo Figueiredo"]
[Black "Hopman, Pieter"]
[Result "0-1"]
[Annotator "TA"]
[ECO "B07"]
[WhiteElo "1985"]
[BlackElo "2312"]
[PlyCount "110"]
[EventDate "2025.03.03"]
[EventType "swiss"]
[EventCountry "POR"]
[SourceTitle "playchess.com"]
[Source "ChessBase"]
[SourceQuality "1"]
[TimeControl "5400+30"]

{[%evp 10,110,52,40,56,42,28,34,47,37,89,20,26,18,21,20,49,56,50,45,46,-8,0,-10,-14,-32,-26,-44,-29,-100,-37,-107,-116,-136,-132,-122,-125,-168,-157,-177,-56,-253,-257,-241,-178,-163,-154,-249,-164,-164,-161,-220,-224,-250,-254,-242,-214,-235,-247,-218,-225,-304,-246,-244,-236,-240,-229,-267,-262,-243,-250,-232,-162,-154,-156,-156,-156,-154,-104,-225,-213,-300,-166,-169,-164,-165,-129,-107,-111,-575,-575,-2217,-2217,-5093,-5081,-29972,-29974,-29974,-29975,-29975,-29977,-29970,-29965]} 1. e4 {[%emt 0:00:03]} d6 {[%emt 0:01:19]} 2. d4 {[%emt 0:00:19]} Nf6 {[%emt 0:00:05]} 3. Nc3 {[%emt 0:00:18]} e5 {[%emt 0:00:15]} 4. dxe5 {[%emt 0:00:26]} dxe5 {[%emt 0:00:06]} 5. Qxd8+ {[%emt 0:00:05]} Kxd8 {[%emt 0:00:06]} 6. Bc4 {[%emt 0:00:34]} Ke8 $1 {[%emt 0:00:07][%mdl 4] is recently more successful than 6...Be6. B07: Pirc Defence: Miscellaneous Systems.} 7. f4 {[%emt 0:01:00]} Bb4 {[%emt 0:00:42]} 8. Bd3 {[%emt 0:00:17]} Nbd7 {[%emt 0:05:13] White is slightly better.} 9. Nf3 {[%emt 0:03:38]} Bd6 {[%emt 0:13:16]} (9... exf4 $14 10. Bxf4 Nc5) 10. g3 $146 {[%emt 0:03:50]} (10. Nb5 $16) (10. Bd2 c6 11. g3 h6 12. O-O-O Ke7 13. h3 Re8 14. Rde1 b5 15. g4 Kd8 16. f5 {½-½ Sirosh,I (2386)-Kiik,K (2369) EST-ch Tallinn 2022 (5)}) 10... c6 $11 {[%emt 0:03:22]} 11. Be3 {[%emt 0:11:42]} Ng4 {[%emt 0:02:58]} 12. Bd2 {[%emt 0:03:17]} h6 {[%emt 0:04:04]} 13. h3 {[%emt 0:02:40]} Ngf6 {[%emt 0:00:05]} 14. O-O-O {[%emt 0:02:05]} Ke7 {[%emt 0:05:18]} 15. Ne2 {[%emt 0:06:13]} ({White should try} 15. Be3 $14) 15... Re8 $1 {[%emt 0:01:20]} 16. Rhe1 {[%emt 0:16:26]} Kf8 {[%emt 0:03:44]} 17. Bc3 {[%emt 0:01:22]} a5 {[%emt 0:02:36]} 18. a4 {[%emt 0:04:20]} Bc7 {[%emt 0:02:30]} 19. Nd2 {[%emt 0:11:21]} (19. fxe5 $11 {remains equal.} Nxe5 20. Nxe5 Bxe5 21. Bxe5 Rxe5 22. Ng1) 19... Nb6 {[%emt 0:03:30]} (19... Nc5 $17 20. Bxe5 Bxe5 21. fxe5 Nfd7 (21... Rxe5 22. g4 $15)) 20. b3 {[%emt 0:02:36]} (20. Bxe5 $15 Bxe5 21. fxe5 Rxe5 22. Nf4 (22. Nf3 $2 Re7 $19)) 20... Bxh3 $17 {[%emt 0:00:55]} 21. fxe5 {[%emt 0:07:54]} Bxe5 {[%emt 0:00:45]} 22. Bxe5 {[%emt 0:03:14]} Rxe5 {[%emt 0:00:06]} 23. Nd4 {[%emt 0:03:08]} Rae8 {[%emt 0:05:11]} 24. N2f3 {[%emt 0:01:41]} R5e7 {[%emt 0:02:57]} (24... Rh5 $19 25. Nd2 Rg5) 25. Nf5 $2 {[%emt 0:01:23]} ({Only move:} 25. e5 $15 Ng4 26. Ng1) 25... Bxf5 $19 {[%emt 0:03:20]} 26. exf5 {[%emt 0:00:04]} Nbd5 {[%emt 0:02:24]} 27. Rxe7 {[%emt 0:04:44]} Rxe7 {[%emt 0:00:07]} 28. Kd2 {[%emt 0:02:18]} (28. Nd2 $17) 28... Ng4 {[%emt 0:03:03]} 29. Re1 {[%emt 0:01:55]} Nb4 {[%emt 0:01:36]} 30. Rxe7 {[%emt 0:04:18]} (30. Re2 $142) 30... Kxe7 {[%emt 0:00:07][%mdl 4096] Endgame KBN-KNN. Black is a pawn up.} 31. c3 {[%emt 0:00:01]} Nd5 {[%emt 0:00:17]} 32. Nd4 {[%emt 0:02:11]} Nf2 {[%emt 0:04:25]} 33. Bc2 {[%emt 0:01:01]} Kf6 {[%emt 0:00:59]} 34. Ke2 {[%emt 0:00:21]} Ng4 {[%emt 0:02:24]} (34... Nxc3+ $2 35. Kxf2 Ke5 36. Nf3+ Kd5 37. Ke3 $18) 35. c4 {[%emt 0:00:18]} Nb4 {[%emt 0:00:33]} 36. Bb1 {[%emt 0:00:46]} Ke5 {[%emt 0:01:25]} (36... Na6 37. Nf3 $19) 37. Nf3+ {[%emt 0:00:04]} Kd6 {[%emt 0:00:13]} 38. Nd2 {[%emt 0:00:41]} Kc5 {[%emt 0:03:20]} 39. Ne4+ {[%emt 0:00:25]} Kd4 {[%emt 0:00:58]} 40. Nd6 {[%emt 0:00:02]} Kc3 {[%emt 0:02:15]} 41. Nxb7 {[%emt 0:00:01]} Kxb3 {[%emt 0:00:34]} 42. Nxa5+ {[%emt 0:00:02]} Kxa4 {[%emt 0:00:12]} 43. Nb7 {[%emt 0:00:06] [#]} Kb3 {[%emt 0:00:29]} (43... Ne5 $142 $1 44. Ke3 Nxc4+ 45. Kd4 Kb5) 44. Nd6 {[%emt 0:00:01]} (44. Kf3 $17 Ne5+ 45. Ke4 Nxc4 46. Kd4) 44... Ne5 {[%emt 0:00:34]} 45. Ne8 {[%emt 0:01:29]} (45. Be4 {might work better.}) 45... g5 {[%emt 0:03:38]} (45... Nxc4 $142 {Hoping for ...c5.} 46. Nxg7 Nd6) 46. fxg6 {[%emt 0:01:21]} fxg6 {[%emt 0:00:10]} 47. Nd6 {[%emt 0:00:27]} Kc3 {[%emt 0:03:07][%cal Oc3d4]} 48. Ke3 {[%emt 0:00:28]} g5 {[%emt 0:00:25]} 49. Ke4 $2 {[%emt 0:01:17][%mdl 8192]} (49. c5 $17) 49... Nxc4 {[%emt 0:03:03]} 50. Nxc4 {[%emt 0:00:01]} Kxc4 {[%emt 0:00:09] KB-KN. Black is two pawns up.} 51. Kf5 {[%emt 0:00:02]} Kd4 {[%emt 0:00:25] ( -> ...c5)} 52. Kg6 {[%emt 0:00:04] [#]} Ke5 $1 {[%emt 0:00:25] Black mates.} 53. Kxh6 {[%emt 0:00:12]} Kf6 {[%emt 0:00:07]} 54. Kh5 {[%emt 0:00:42]} c5 {[%emt 0:00:15]} 55. Kg4 {[%emt 0:00:56]} c4 {[%emt 0:00:11] Weighted Error Value: White=0.65/Black=0.20 (precise)   Loses game:     	White=2     	---        Mistake:       	White=8     	Black=5      Inaccurate:     	White=4     	Black=3      OK:         	White=15    	Black=13     Best:        	White=2     	Black=7      Strong:       	---       	Black=1} 0-1

[Event "Silves Open 2025"]
[Site "Fissul"]
[Date "2025.03.03"]
[Round "2.9"]
[White "Sanz Wawer, Daniel"]
[Black "Adams, Philip"]
[Result "1-0"]
[Annotator "TA"]
[ECO "B38"]
[WhiteElo "2283"]
[BlackElo "1903"]
[PlyCount "112"]
[EventDate "2025.03.03"]
[EventType "swiss"]
[EventCountry "POR"]
[SourceTitle "playchess.com"]
[Source "ChessBase"]
[SourceQuality "1"]
[TimeControl "5400+30"]

{[%evp 24,112,80,61,69,63,58,66,67,59,84,51,45,59,62,74,62,49,42,45,95,95,93,83,108,112,99,75,158,144,151,75,166,168,166,168,162,171,178,46,46,46,82,82,82,82,82,82,91,91,91,91,91,91,91,91,91,91,166,181,181,91,92,2,9,9,9,9,12,10,16,0,57,57,57,53,62,54,69,83,65,54,391,368,435,247,879,790,29988,29989,29989]} 1. e4 {[%emt 0:01:37]} c5 {[%emt 0:03:09]} 2. Nf3 {[%emt 0:00:28]} g6 {[%emt 0:00:07]} 3. d4 {[%emt 0:00:35]} cxd4 {[%emt 0:00:05]} 4. Nxd4 {[%emt 0:00:06]} Bg7 {[%emt 0:00:08]} 5. c4 {[%emt 0:00:42]} Nc6 {[%emt 0:00:08]} 6. Be3 {[%emt 0:00:32]} Nf6 {[%emt 0:00:09]} 7. Nc3 {[%emt 0:00:14]} O-O {[%emt 0:00:07]} 8. Be2 {[%emt 0:01:14]} b6 {[%emt 0:00:59]} 9. O-O {[%emt 0:01:05]} Bb7 {[%emt 0:00:25]} 10. f3 {[%emt 0:00:49]} d6 {[%emt 0:04:13]} 11. Qd2 {[%emt 0:01:56]} Nxd4 {[%emt 0:03:36]} 12. Bxd4 {[%emt 0:00:06]} Nd7 {[%emt 0:00:37]} 13. Be3 {[%emt 0:00:34] White is more active.} a5 {[%emt 0:00:50] B38: Sicilian: Maroczy Bind with 5...Bg7 and 7...0-0.} 14. b3 {[%emt 0:05:09]} Nc5 {[%emt 0:00:46]} 15. Rab1 {[%emt 0:01:58]} Be5 $146 {[%emt 0:13:47] White is slightly better.} (15... Bc6 16. a3 Re8 17. Bd1 Nd7 18. b4 axb4 19. axb4 Ra3 20. Bb3 Qa8 {½-½ Perrin,R (2066)-Darmanto,H (2198) FIN jub55 Gr41 email 2017}) 16. a3 {[%emt 0:04:41][%cal Ba2a3,Ba3b4,Bb4b5][%mdl 32]} e6 {[%emt 0:06:44]} 17. Rf2 {[%emt 0:02:27]} Bc6 {[%emt 0:17:54]} 18. b4 {[%emt 0:04:34]} axb4 {[%emt 0:00:12]} 19. axb4 {[%emt 0:00:05]} Na4 {[%emt 0:00:59]} 20. Nxa4 {[%emt 0:01:16]} Rxa4 {[%emt 0:00:25]} 21. Rd1 {[%emt 0:03:34]} Ra3 {[%emt 0:09:46]} (21... Bb7 $14) 22. b5 $36 {[%emt 0:01:08][%mdl 2048] White is really pushing.} Ba8 {[%emt 0:03:09]} 23. Bd4 {[%emt 0:08:46]} Qc7 {[%emt 0:02:58]} 24. Bxe5 {[%emt 0:05:53]} dxe5 {[%emt 0:00:06]} 25. Qd6 {[%emt 0:00:34]} Qc5 {[%emt 0:06:48]} (25... Qxd6 $142 26. Rxd6 Rb8) 26. Qxc5 {[%emt 0:01:04]} bxc5 {[%emt 0:00:02]} 27. Rd6 {[%emt 0:11:48]} (27. Rd7 $142) 27... Re8 {[%emt 0:05:03]} (27... Rc8 $16) 28. Rd7 $1 $18 {[%emt 0:03:09]} Rc8 {[%emt 0:02:28]} 29. Rf1 {[%emt 0:01:29]} Kf8 {[%emt 0:05:22] [#]} 30. Rfd1 $1 {[%emt 0:02:31]} Ke8 {[%emt 0:00:21][%cal Oa8d5] [#]} 31. Kf2 {[%emt 0:02:45]} (31. R1d6 $1 $18) 31... Bd5 $1 $14 {[%emt 0:01:20]} 32. Rd6 {[%emt 0:02:01]} Bb7 {[%emt 0:05:18]} 33. g4 {[%emt 0:01:40]} h6 {[%emt 0:01:39]} 34. h4 {[%emt 0:00:07]} Raa8 {[%emt 0:02:26]} 35. g5 {[%emt 0:02:30]} hxg5 {[%emt 0:01:17]} 36. hxg5 {[%emt 0:00:05]} Rd8 {[%emt 0:00:39]} 37. Rxd8+ {[%emt 0:00:30]} Rxd8 $16 {[%emt 0:00:03][%mdl 4096] Endgame KRB-KRB} 38. Rh1 {[%emt 0:00:08]} Ke7 {[%emt 0:00:43]} 39. Ke3 {[%emt 0:00:09]} Ra8 {[%emt 0:00:35]} 40. Bd3 {[%emt 0:01:17]} Ra2 {[%emt 0:05:07]} (40... Rb8 $16 {keeps fighting.}) 41. Rh8 $18 {[%emt 0:00:40]} Ra8 {[%emt 0:00:00]} 42. Rh2 {[%emt 0:00:10]} (42. Rxa8 $18 {White wants to mate with Ra7.} Bxa8 43. Bc2) 42... Ra1 {[%emt 0:00:00]} 43. f4 {[%emt 0:07:08]} ({White should play} 43. Bc2 $16) 43... exf4+ {[%emt 0:00:00]} 44. Kxf4 {[%emt 0:00:14]} Ra3 {[%emt 0:00:00]} 45. Rd2 {[%emt 0:02:19]} Ra1 {[%emt 0:00:28]} 46. e5 {[%emt 0:02:09]} Ra3 {[%emt 0:01:47]} 47. Ke3 {[%emt 0:01:16]} Ke8 {[%emt 0:00:20]} ({Better is} 47... Ra1 $1 $11) 48. Rh2 $14 {[%emt 0:00:46]} Ke7 {[%emt 0:00:12]} 49. Rh7 {[%emt 0:02:57]} Bg2 {[%emt 0:00:29] ...Bf1 would now be deadly.} 50. Kd2 $1 {[%emt 0:00:45]} Ra2+ $1 {[%emt 0:00:43]} 51. Kc3 {[%emt 0:00:14][%cal Oc3b3] Hoping for Kb3!.} Ra3+ {[%emt 0:00:13]} 52. Kc2 {[%emt 0:00:14]} Ra2+ $2 {[%emt 0:00:52][%mdl 8192] Loses the game.} (52... Ke8 $1 $14) 53. Kb3 $18 {[%emt 0:00:33]} Rf2 {[%emt 0:00:50]} 54. Bxg6 {[%emt 0:04:40]} (54. Rh2 $142) 54... Bf1 $2 {[%emt 0:00:03] [#]} (54... Ke8) 55. Bxf7 $1 {[%emt 0:01:58]} Rxf7 {[%emt 0:00:50]} (55... Bg2 56. Bg8+) 56. g6 {[%emt 0:00:04]} Ke8 {[%emt 0:01:13] Weighted Error Value: White=0.21 (precise) /Black=0.57  Loses game:     	---       	Black=1      Mistake:       	White=5     	Black=6      Inaccurate:     	White=1     	Black=2      OK:         	White=16    	Black=13     Best:        	White=5     	Black=1      Strong:       	White=2     	Black=2} 1-0